Cogmind - Beta 11 @@@ ROGUE MODE // 2022.05.08 @ 01:28:53 Player: biogoob Result: Self-destructed Performance ------------- Evolutions (1) 500 Regions Visited (3) 600 Robots Destroyed (4) 20 Value Destroyed (171) 171 Prototype IDs (0) 0 Alien Tech Used (0) 0 Bonus (0) 0 TOTAL SCORE: 1291 Bonus ------- None Cogmind --------- Core Integrity 388/400 Matter 270/300 Energy 256/265 System Corruption 0% Temperature Cool (0) Movement Walking (120) Location -9/Materials Parts ------- > --- POWER (1) -------- Improved Ion Engine > --- PROPULSION (3) --- Aluminum Leg Aluminum Leg > --- UTILITY (3) ------ Small Storage Unit Power Shielding Shield Generator > --- WEAPON (2) ------- Medium Laser Small Laser > --- INVENTORY (8) ---- Ion Engine Ion Engine Light Nuclear Core Light Treads Aluminum Leg Wheel Compact Wheel Heavy Assault Rifle Peak State ------------ > --- POWER ------------ Improved Ion Engine > --- PROPULSION ------- Aluminum Leg Aluminum Leg > --- UTILITY ---------- Small Storage Unit Power Shielding Shield Generator > --- WEAPON ----------- Medium Laser Small Laser > --- INVENTORY -------- Ion Engine Ion Engine Light Nuclear Core Light Treads Aluminum Leg Wheel Compact Wheel Heavy Assault Rifle [Rating: 11] Favorites ----------- Power Ion Engine Engine Ion Engine Propulsion Aluminum Leg Leg Aluminum Leg Utility Small Storage Unit Device Shield Generator Storage Small Storage Unit Protection Power Shielding Weapon Medium Laser Energy Gun Medium Laser Build | -11 -10 -10 -9 ------- Run | Scr Mat Min Mat Slots Evolved 2 | . . . 2 Power . | . . . . Propulsion 1 | . . . 1 Utility 1 | . . . 1 Weapon . | . . . . Parts Attached 6 | . 1 4 1 Power 1 | . . 1 . Engine 1 | . . 1 . Core . | . . . . Reactor . | . . . . Propulsion 2 | . 1 1 . Treads . | . . . . Leg 2 | . 1 1 . Wheel . | . . . . Hover . | . . . . Flight . | . . . . Utility 2 | . . 1 1 Device 1 | . . . 1 Storage . | . . . . Processor . | . . . . Hackware . | . . . . Protection 1 | . . 1 . Artifact . | . . . . Weapon 1 | . . 1 . Energy Gun 1 | . . 1 . Energy Cannon . | . . . . Ballistic Gun . | . . . . Ballistic Cannon . | . . . . Launcher . | . . . . Special Weapon . | . . . . Impact Weapon . | . . . . Slashing Weapon . | . . . . Piercing Weapon . | . . . . Special Melee Weapon . | . . . . Unidentified Prototypes . | . . . . Parts Lost . | . . . . Power . | . . . . Propulsion . | . . . . Utility . | . . . . Weapon . | . . . . Highest Loss Streak . | . . . . To Critical Strikes . | . . . . Average Slot Usage (%) 86 | . 81 89 82 Engine 13 | . 14 14 11 Leg 26 | . 26 28 22 Storage 13 | . 14 14 11 Protection 5 | . . 6 11 Energy Gun 25 | . 25 26 22 Naked Turns . | . . . . Heaviest Build 18 | 13 13 16 18 Greatest Support 20 | 20 20 20 20 Greatest Overweight (x) 1 | . 1 . . Average Overweight (x) . | . . . . Largest Inventory Capacity 8 | 8 8 8 8 Average Capacity 8 | 8 8 8 8 Most Carried 8 | 5 5 8 8 Average Carried 6 | 5 5 7 8 Final Capacity 8 | 8 8 8 8 Final Carried 8 | 5 5 8 8 Class Distribution -------------------- 100% | Mutant Dominant Class ---------------- Mutant | -10/Materials Mutant | -10/Mines Mutant | -9/Materials Resources | -11 -10 -10 -9 ----------- Run | Scr Mat Min Mat Matter Collected 230 | 200 . 30 . Remotely . | . . . . Salvage Created 211 | . . 211 . Parts 11 | . . 11 . Haulers Intercepted . | . . . . Recyclers Shooed . | . . . . Parts Field Recycled . | . . . . Retrieved Matter . | . . . . Parts Self-Destructed . | . . . . Prevented . | . . . . Kills | -11 -10 -10 -9 ------- Run | Scr Mat Min Mat Combat Hostiles Destroyed 4 | . . 4 . Guns 3 | . . 3 . Classes Destroyed 2 | . . 2 . Grunt 2 | . . 2 . Sentry 2 | . . 2 . Best Kill Streak 2 | . . 2 . Combat Bots Only 2 | . . 2 . Max Kills in Single Turn 1 | . . 1 . Gunslinging . | . . . . Exploded . | . . . . Melee . | . . . . Uniques/NPCs Destroyed . | . . . . Combat | -11 -10 -10 -9 -------- Run | Scr Mat Min Mat Damage Taken 258 | . . 216 42 Core 71 | . . 59 12 Absorbed by Shields 15 | . . . 15 Redirected to Shielding 2 | . . . 2 Core Remaining (%) 88 | 100 . 76 . Volleys Fired 17 | . . 15 2 Largest 2 | . . 2 2 Hottest 90 | . . 90 90 Shots Fired 22 | . . 18 4 Gun 22 | . . 18 4 Cannon . | . . . . Launcher . | . . . . Special . | . . . . Kinetic . | . . . . Thermal 22 | . . 18 4 Explosive . | . . . . Electromagnetic . | . . . . Robot Hit Streak 18 | . . 18 3 Robot Miss Streak 1 | . . . 1 Penetration Max . | . . . . Secondary Targets . | . . . . Shots Hit Robots 21 | . . 18 3 Core Hits 9 | . . 8 1 Critical Kills . | . . . . Critical Parts Destroyed . | . . . . Critical Strikes 1 | . . 1 . Burn 1 | . . 1 . Melee Attacks . | . . . . Impact . | . . . . Slashing . | . . . . Piercing . | . . . . Sneak Attacks . | . . . . Combat Hostiles . | . . . . Follow-up Attacks . | . . . . Damage Inflicted 272 | . . 225 47 Guns 272 | . . 225 47 Cannons . | . . . . Explosions . | . . . . Melee . | . . . . Ramming . | . . . . Kinetic . | . . . . Thermal 272 | . . 225 47 Explosive . | . . . . Electromagnetic . | . . . . Impact . | . . . . Slashing . | . . . . Piercing . | . . . . Highest Corruption . | . . . . Average Corruption . | . . . . Corruption Purged . | . . . . Corruption Blocked . | . . . . Overload Shots . | . . . . Overflow Damage . | . . . . Projectiles . | . . . . Explosions . | . . . . Melee . | . . . . Knockbacks . | . . . . Impact . | . . . . Kinetic . | . . . . Secondary . | . . . . Self-Inflicted Damage . | . . . . Shots . | . . . . Rammed . | . . . . Targets Rammed . | . . . . Kicked . | . . . . Crushed . | . . . . Highest Temperature 198 | . . 198 64 Average Temperature 80 | . . 89 33 Received Heat Transfer 116 | . . 96 20 Siege Activations . | . . . . Robots Corrupted . | . . . . Combat Hostiles . | . . . . Parts Fried . | . . . . Impact Corruptions . | . . . . Robots Melted 1 | . . 1 . Combat Hostiles 1 | . . 1 . Parts Melted 2 | . . 2 . Heat Transferred 828 | . . 704 124 Parts Sabotaged . | . . . . Parts Stolen . | . . . . Parts Stripped . | . . . . Power Chain Reactions . | . . . . Missiles Intercepted . | . . . . Alert | -11 -10 -10 -9 ------- Run | Scr Mat Min Mat Peak Influence 120 | . . 120 46 Initial 46 | . . . 46 Average 57 | . . 91 46 Maximum Alert Level . | . . . . Low Security (%) 100 | 100 100 100 100 Level 1 . | . . . . Level 2 . | . . . . Level 3 . | . . . . Level 4 . | . . . . Level 5 . | . . . . High Security . | . . . . Max Security . | . . . . Squads Dispatched . | . . . . Investigation . | . . . . Extermination . | . . . . Reinforcement . | . . . . Assault . | . . . . Garrison . | . . . . Intercept . | . . . . Searches Triggered . | . . . . Construction Impeded . | . . . . Haulers Reinforced . | . . . . Active Scanning Responses . | . . . . Cargo Convoy Interrupts . | . . . . Stealth | -11 -10 -10 -9 --------- Run | Scr Mat Min Mat Distress Signals . | . . . . Communications Jammed . | . . . . Distress Signals . | . . . . Times Spotted 6 | . . 4 2 Peak Tracking Total 2 | . . 2 2 Tactical Retreats . | . . . . Traps | -11 -10 -10 -9 ------- Run | Scr Mat Min Mat Traps Triggered 1 | . 1 . . Indirectly . | . . . . Trap Hack Attempts . | . . . . Triggered . | . . . . Disarmed . | . . . . Reprogrammed . | . . . . Reused . | . . . . Traps Extracted . | . . . . Installed . | . . . . Triggered . | . . . . Machines | -11 -10 -10 -9 ---------- Run | Scr Mat Min Mat Machines Disabled . | . . . . Max in Single Turn . | . . . . Machines Sabotaged . | . . . . Garrisons Compromised . | . . . . Overloaded Fab Kills . | . . . . Hacking | -11 -10 -10 -9 --------- Run | Scr Mat Min Mat Machines Accessed . | . . . . Terminals . | . . . . Fabricators . | . . . . Repair Stations . | . . . . Recycling Units . | . . . . Scanalyzers . | . . . . Garrison Access . | . . . . Total Hacks . | . . . . Successful . | . . . . Failed . | . . . . Catastrophic . | . . . . Database Lockouts . | . . . . Manual . | . . . . Terminals . | . . . . Fabricators . | . . . . Repair Stations . | . . . . Recycling Units . | . . . . Scanalyzers . | . . . . Garrison Access . | . . . . Terminal Hacks . | . . . . Fabricator Hacks . | . . . . Repair Station Hacks . | . . . . Recycling Unit Hacks . | . . . . Scanalyzer . | . . . . Garrison Access Hacks . | . . . . Unauthorized Hacks . | . . . . Terminals . | . . . . Fabricators . | . . . . Repair Stations . | . . . . Recycling Units . | . . . . Scanalyzers . | . . . . Garrison Access . | . . . . Data Cores Recovered . | . . . . Used . | . . . . Hacking Detections . | . . . . Full Trace Events . | . . . . Feedback Events . | . . . . Feedback Blocked . | . . . . Robot Schematics Acquired . | . . . . Robots Built . | . . . . Authchips . | . . . . Time . | . . . . Total Robot Build Rating . | . . . . Part Schematics Acquired . | . . . . Parts Built . | . . . . Authchips . | . . . . Time . | . . . . Total Part Build Rating . | . . . . Parts Repaired . | . . . . Time . | . . . . Parts Recycled . | . . . . Recycled Matter . | . . . . Retrieved Matter . | . . . . Retrieved Components . | . . . . Parts Scanalyzed . | . . . . Part Schematics Acquired . | . . . . Parts Damaged . | . . . . Bothacking | -11 -10 -10 -9 ------------ Run | Scr Mat Min Mat Used RIF Installer . | . . . . Robots Hacked . | . . . . Non-combat . | . . . . Combat . | . . . . Robot Hacks Applied . | . . . . Relay Couplers Released . | . . . . Fabnet Peak Effective % . | . . . . Robots Rewired . | . . . . Allies Hacked . | . . . . Hacks Repelled . | . . . . Allies | -11 -10 -10 -9 -------- Run | Scr Mat Min Mat Total Allies . | . . . . Largest Group . | . . . . Highest-Rated Group . | . . . . Highest-Rated Ally . | . . . . Total Orders . | . . . . Ally Attacks . | . . . . Total Damage . | . . . . Kills . | . . . . Allies Corrupted . | . . . . Allies Melted . | . . . . Intel | -11 -10 -10 -9 ------- Run | Scr Mat Min Mat Robot Analysis Total . | . . . . Derelict Logs Recovered . | . . . . Drone Launches . | . . . . Drone Recoveries . | . . . . Exploration | -11 -10 -10 -9 ------------- Run | Scr Mat Min Mat Turns Passed 413 | 6 119 232 56 Spaces Moved 303 | 5 98 160 40 Core . | . . . . Treads . | . . . . Legs 303 | 5 98 160 40 Wheels . | . . . . Hover . | . . . . Flight . | . . . . Fastest Speed 120 | 120 120 120 120 Average Speed 120 | 120 120 120 120 Slowest Speed 190 | 120 190 120 120 Overloaded Moves . | . . . . Propulsion Burnouts . | . . . . Robots Hopped . | . . . . Cave-ins Triggered . | . . . . Exploration Rate (%) 17 | 2 23 39 5 Regions Visited 3 Branch Regions 1 Pre-discovered Areas . | . . . . Known Exits Taken . | . . . . Unknown Exits Taken 3 | 1 1 1 . Scrap Searched . | . . . . Spaces Dug . | . . . . Terrain Destroyed . | . . . . Melee . | . . . . Projectile . | . . . . AOE . | . . . . Terrain Rammed . | . . . . Walls Destroyed . | . . . . Machines Disabled . | . . . . Actions | -11 -10 -10 -9 --------- Run | Scr Mat Min Mat Total 329 | 5 98 183 43 Wait . | . . . . Move 300 | 4 97 159 40 Hop . | . . . . Pick Up 3 | . . 3 . Fast Attach 4 | . 1 2 1 Attach . | . . . . Detach . | . . . . Swap 2 | . . 2 . Drop 3 | 1 . 2 . Fire 17 | . . 15 2 Melee . | . . . . Ram . | . . . . Kick . | . . . . Crush . | . . . . Escape Stasis . | . . . . Rewire . | . . . . Trap . | . . . . Miscellaneous . | . . . . Route ------- -11/Scrapyard -10/Materials -10/Mines -9/Materials History --------- Turn | Location | Event 2 | -11/Scrapyard | Discovered new exit (range 3) 7 | -11/Scrapyard | Entered Materials 109 | -10/Materials | Discovered new exit (range 12) 126 | -10/Materials | Entered Mines 187 | -10/Mines | Met a Derelict bent on vengeance 307 | -10/Mines | Build established: Mutant 343 | -10/Mines | Discovered new exit (range 14) 358 | -10/Mines | Entered Materials 358 | -9/Materials | Evolved 2 slots: Propulsion x1, Utility x1 414 | -9/Materials | Self-destructed Last Messages --------------- 00264_ Dropped Lgt. Assault Rifle. 00264_ Acquired Hvy. Assault Rifle. 00267_ Dropped Hvy. Assault Rifle. 00267_ Acquired Hvy. Assault Rifle. [A new version of Cogmind is available, see F1 News page.] 00326_ TK-OIP(g): "UNAWARE KILLED MY BEST FRIEND! VENGEANCE!" 00330_ TK-OIP(g): "TASTE MY VENGEANCE!" 00338_ TK-OIP(g): "UNAWARE KILLED MY BEST FRIEND! VENGEANCE!" 00343_ EXIT=FOUND 00349_ K-01 Serf collects debris. PARAMETERS=PROPULSION+1,UTILITY+1 LOCATION=UNKNOWN GOAL=ESCAPE 00384_ Acquired Shield Generator. 00391_ K-01 Serf collects debris. [A new version of Cogmind is available, see F1 News page.] 00411_ K-01 Serf collects debris. Map ----- +----------------------------------------------------+ | ??????????????????????????????????????? | | ??????????????????????????????????????? | | ??????????????????????????????????????? | | ??????????????????????????????????????? | | ??????????????????????????????????????? | | ??????????????????????????????????????? | | ??????????????????????????????????????? | | ???????????? ???????????????????????? | | ???????????? ???????????????????????? | | ???????????? ???????????????????????? | | ???????????# +??????????????????????? | | ???????????# #??????????????????????? | | ???????????# #??????????????????????? | | ???????????# #??????????????????????? | | ???????????# #??????????????????????? | | ???????????+ #??????????????????????? | | ???????????# #??????????????????????? | | ??????????## ##?????#####???????????? | | ??????????# ##### #???????????? | | ??????????# #???????????? | | ??????????# #???????????? | | ??????????# ????????????????? | | ??????????# #?????????????????????? | | ??????#######+#######?????????????????? | | ??????# #?????????????????? | | ??????# """ [@ """ #?????????????????? | | ??????# """ [ """ #?????????????????? | | ??????# """ k """ #?????????????????? | | ??????# #?????????????????? | | ??????# |#?????????????????? | | ??????##+#######+####?????????????????? | | ???????# #???????????????????? | | ???????# #???????????????????? | | ???????# #???????????????????? | | ???????######## #???????????????????? | | ??????????????# #???????????????????? | | ??????????????# #??????#????????????? | | ??????????##### #### #????????????? | | ??????????# #????????????? | | ??????????# +????????????? | | ??????????# #????????????? | | ??????????############ #????????????? | | ??????????????????????? #????????????? | | ???????????????????????? #????????????? | | ?????????????????????????#????????????? | | ??????????????????????????????????????? | | ??????????????????????????????????????? | | ??????????????????????????????????????? | | ??????????????????????????????????????? | | ??????????????????????????????????????? | +----------------------------------------------------+ Best States ------------- Heat Dissipation 28 Energy Generation 12 Energy Capacity 265 Matter Stores 300 Matter Capacity 300 Sight Range 16 Terrain Scan Density 10 Power Shielding 33 Evasion (%) 55 Item Schematics ----------------- None Robot Schematics ------------------ None Fabricated ------------ Nothing Alien Tech Used ----------------- None Achievements -------------- None Challenges ------------ None Game ------ Seed DiametricBiocellRigger Manual? 0 Play Time 00:05:16 Cumulative 94.7 hours Start 2022.05.07 @ 23:49:13 End 2022.05.08 @ 01:28:53 Sessions 4 Manual Loads 0 Difficulty Rogue Special Mode None Game No. 113 Rogue 91 Adventurer 18 Explorer 4 Win Type - Total 1 Types 0/0/1/0/0/0/0/0/0 Lore% 46 Gallery% 51 Achievement% 45 Wizard Run 0 Options --------- ASCII 1 Keyboard 1 Movement Vi Keybinds 0 Fullscreen 2 Font 24/Smallcaps Map View 76x50 Tactical HUD 1 Map Filters SATURATION(80) Filters SATURATION(80) Steam 1 RUN: fc076eaf-d44a-45e7-a732-9e4c62925255